[Event "January 9 Early 2024"]
[Site "https://www.chess.com"]
[Date "2024.01.11"]
[Round "4"]
[White "Lima, Artur Tin Lun Dai"]
[Black "Flynn, Jacob"]
[Result "1-0"]
[Board "308"]
[TimeControl "180+1"]
[WhiteFideId "22773150"]
[BlackFideId "2509393"]
[WhiteElo "2389"]
[BlackElo "2509"]
[WhiteTeam "BRA"]
[BlackTeam "IRL"]
[WhiteClock "0:00:15"]
[BlackClock "0:00:06"]

1. d4 {[%clk 0:03:00]}  Nf6 {[%clk 0:03:00]} 2. Bf4 {[%clk 0:03:00]}  d5 {[%clk 0:03:00]} 3. e3 {[%clk 0:02:59]}  c5 {[%clk 0:03:00]} 4. Nf3 {[%clk 0:02:56]}  Nc6 {[%clk 0:03:01]} 5. Nbd2 {[%clk 0:02:51]}  cxd4 {[%clk 0:02:57]} 6. exd4 {[%clk 0:02:50]}  Bf5 {[%clk 0:02:57]} 7. c3 {[%clk 0:02:49]}  e6 {[%clk 0:02:56]} 8. Ne5 {[%clk 0:02:34]}  Be7 {[%clk 0:02:37]} 9. Bb5 {[%clk 0:02:33]}  Rc8 {[%clk 0:02:37]} 10. O-O {[%clk 0:02:24]}  O-O {[%clk 0:02:36]} 11. a4 {[%clk 0:02:21]}  Nxe5 {[%clk 0:02:32]} 12. Bxe5 {[%clk 0:02:13]}  a6 {[%clk 0:02:32]} 13. Be2 {[%clk 0:02:13]}  Ne4 {[%clk 0:02:26]} 14. Nxe4 {[%clk 0:02:10]}  Bxe4 {[%clk 0:02:27]} 15. Bd3 {[%clk 0:02:05]}  Bxd3 {[%clk 0:02:27]} 16. Qxd3 {[%clk 0:02:06]}  Bd6 {[%clk 0:02:25]} 17. Bxd6 {[%clk 0:01:55]}  Qxd6 {[%clk 0:02:25]} 18. a5 {[%clk 0:01:55]}  Rc4 {[%clk 0:02:24]} 19. Ra3 {[%clk 0:01:52]}  g6 {[%clk 0:02:24]} 20. Rb3 {[%clk 0:01:48]}  Qc7 {[%clk 0:02:23]} 21. Ra1 {[%clk 0:01:46]}  Rc8 {[%clk 0:02:23]} 22. g3 {[%clk 0:01:45]}  Kg7 {[%clk 0:02:22]} 23. Raa3 {[%clk 0:01:39]}  Qe7 {[%clk 0:02:21]} 24. Rb6 {[%clk 0:01:37]}  R8c7 {[%clk 0:02:20]} 25. Qe3 {[%clk 0:01:30]}  h5 {[%clk 0:02:16]} 26. Qe5+ {[%clk 0:01:29]}  Kh7 {[%clk 0:02:15]} 27. h4 {[%clk 0:01:23]}  R4c6 {[%clk 0:01:58]} 28. Rab3 {[%clk 0:01:20]}  Rxb6 {[%clk 0:01:56]} 29. Rxb6 {[%clk 0:01:21]}  Qd7 {[%clk 0:01:55]} 30. Kg2 {[%clk 0:01:16]}  Rc8 {[%clk 0:01:43]} 31. Qe2 {[%clk 0:01:06]}  Qc7 {[%clk 0:01:39]} 32. Qc2 {[%clk 0:01:02]}  Rd8 {[%clk 0:01:30]} 33. Qb3 {[%clk 0:01:02]}  Rd7 {[%clk 0:01:29]} 34. Qb4 {[%clk 0:01:02]}  Kg7 {[%clk 0:01:28]} 35. Kg1 {[%clk 0:00:55]}  Qc8 {[%clk 0:01:28]} 36. Kg2 {[%clk 0:00:54]}  Rc7 {[%clk 0:01:28]} 37. Qd6 {[%clk 0:00:51]}  Qd7 {[%clk 0:01:26]} 38. Qe5+ {[%clk 0:00:46]}  Kf8 {[%clk 0:01:24]} 39. Qf6 {[%clk 0:00:44]}  Ke8 {[%clk 0:01:20]} 40. Qh8+ {[%clk 0:00:43]}  Ke7 {[%clk 0:01:20]} 41. Qb8 {[%clk 0:00:42]}  Kf6 {[%clk 0:01:06]} 42. Kf3 {[%clk 0:00:42]}  Kg7 {[%clk 0:01:04]} 43. Kg2 {[%clk 0:00:40]}  Qe7 {[%clk 0:01:05]} 44. Qa7 {[%clk 0:00:37]}  Qd7 {[%clk 0:00:53]} 45. Qb8 {[%clk 0:00:37]}  Qe7 {[%clk 0:00:52]} 46. Qa7 {[%clk 0:00:37]}  Rd7 {[%clk 0:00:51]} 47. Qb8 {[%clk 0:00:37]}  Kh7 {[%clk 0:00:49]} 48. Qc8 {[%clk 0:00:34]}  Rc7 {[%clk 0:00:47]} 49. Qb8 {[%clk 0:00:34]}  Qd7 {[%clk 0:00:46]} 50. Qa7 {[%clk 0:00:32]}  Qc8 {[%clk 0:00:41]} 51. Kf3 {[%clk 0:00:29]}  Kg7 {[%clk 0:00:32]} 52. Ke3 {[%clk 0:00:29]}  Kf8 {[%clk 0:00:27]} 53. Kf3 {[%clk 0:00:29]}  Ke7 {[%clk 0:00:27]} 54. Ke3 {[%clk 0:00:29]}  Kf8 {[%clk 0:00:14]} 55. Kf3 {[%clk 0:00:29]}  Kg7 {[%clk 0:00:15]} 56. Ke3 {[%clk 0:00:29]}  f6 {[%clk 0:00:13]} 57. Rd6 {[%clk 0:00:25]}  Rc6 {[%clk 0:00:08]} 58. Rxc6 {[%clk 0:00:13]}  Qxc6 {[%clk 0:00:09]} 59. Qb8 {[%clk 0:00:13]}  Qd7 {[%clk 0:00:09]} 60. Qa7 {[%clk 0:00:12]}  Qe7 {[%clk 0:00:08]} 61. Qb6 {[%clk 0:00:12]}  e5 {[%clk 0:00:07]} 62. Kd2 {[%clk 0:00:11]}  e4 {[%clk 0:00:06]} 63. Ke3 {[%clk 0:00:11]}  Qd7 {[%clk 0:00:04]} 64. Qc5 {[%clk 0:00:11]}  Kf7 {[%clk 0:00:04]} 65. b3 {[%clk 0:00:11]}  Ke6 {[%clk 0:00:02]} 66. c4 {[%clk 0:00:11]}  dxc4 {[%clk 0:00:01]} 67. bxc4 {[%clk 0:00:12]}  Kf7 {[%clk 0:00:02]} 68. d5 {[%clk 0:00:10]}  Qf5 {[%clk 0:00:02]} 69. Ke2 {[%clk 0:00:07]}  Qf3+ {[%clk 0:00:02]} 70. Ke1 {[%clk 0:00:07]}  Qc3+ {[%clk 0:00:02]} 71. Kf1 {[%clk 0:00:06]}  Qd3+ {[%clk 0:00:02]} 72. Kg1 {[%clk 0:00:06]}  Qd1+ {[%clk 0:00:03]} 73. Kg2 {[%clk 0:00:05]}  Qf3+ {[%clk 0:00:03]} 74. Kg1 {[%clk 0:00:05]}  g5 {[%clk 0:00:03]} 75. hxg5 {[%clk 0:00:01]}  fxg5 {[%clk 0:00:04]} 76. d6 {[%clk 0:00:02]}  h4 {[%clk 0:00:03]} 77. Qd5+ {[%clk 0:00:03]}  Kg6 {[%clk 0:00:02]} 78. gxh4 {[%clk 0:00:02]}  gxh4 {[%clk 0:00:02]} 79. Qe6+ {[%clk 0:00:02]}  Kg5 {[%clk 0:00:02]} 80. d7 {[%clk 0:00:03]}  h3 {[%clk 0:00:02]} 81. d8=Q+ {[%clk 0:00:03]}  Kh5 {[%clk 0:00:02]} 82. Qh8+ {[%clk 0:00:04]}  Kg5 {[%clk 0:00:02]} 83. Qeg8+ {[%clk 0:00:04]}  Kf4 {[%clk 0:00:02]} 84. Qf8+ {[%clk 0:00:05]}  Kg4 {[%clk 0:00:02]} 85. Qxf3+ {[%clk 0:00:06]}  Kxf3 {[%clk 0:00:02]} 86. Qxh3+ {[%clk 0:00:05]}  Ke2 {[%clk 0:00:02]} 87. Qe3+ {[%clk 0:00:06]}  Kd1 {[%clk 0:00:02]} 88. Qxe4 {[%clk 0:00:07]}  Kc1 {[%clk 0:00:02]} 89. Qe3+ {[%clk 0:00:07]}  Kb2 {[%clk 0:00:02]} 90. f4 {[%clk 0:00:08]}  b5 {[%clk 0:00:01]} 91. f5 {[%clk 0:00:09]}  bxc4 {[%clk 0:00:01]} 92. Qd4+ {[%clk 0:00:09]}  c3 {[%clk 0:00:02]} 93. f6 {[%clk 0:00:10]}  Kb3 {[%clk 0:00:02]} 94. f7 {[%clk 0:00:10]}  c2 {[%clk 0:00:03]} 95. Qd3+ {[%clk 0:00:10]}  Kb2 {[%clk 0:00:03]} 96. Qd2 {[%clk 0:00:11]}  Kb1 {[%clk 0:00:03]} 97. f8=Q {[%clk 0:00:11]}  c1=Q+ {[%clk 0:00:03]} 98. Qxc1+ {[%clk 0:00:12]}  Kxc1 {[%clk 0:00:04]} 99. Qd6 {[%clk 0:00:13]}  Kb2 {[%clk 0:00:05]} 100. Qxa6 {[%clk 0:00:14]}  Ka3 {[%clk 0:00:06]} 101. Qb6 {[%clk 0:00:15]}  Ka4 {[%clk 0:00:06]} 102. a6 {[%clk 0:00:15]} 1-0

[Event "January 9 Early 2024"]
[Site "https://www.chess.com"]
[Date "2024.01.11"]
[Round "4"]
[White "Christiansen, Johan-Sebastian"]
[Black "Kashefi, Amir Hosein"]
[Result "1-0"]
[Board "309"]
[TimeControl "180+1"]
[WhiteFideId "1512668"]
[BlackFideId "12557935"]
[WhiteElo "2890"]
[BlackElo "2616"]
[WhiteTeam "NOR"]
[BlackTeam "IRI"]
[WhiteClock "0:00:05"]
[BlackClock "0:00:06"]

1. e4 {[%clk 0:03:00]}  c6 {[%clk 0:02:58]} 2. d4 {[%clk 0:03:01]}  d5 {[%clk 0:02:58]} 3. Nd2 {[%clk 0:03:02]}  dxe4 {[%clk 0:02:58]} 4. Nxe4 {[%clk 0:03:02]}  Nd7 {[%clk 0:02:58]} 5. Nf3 {[%clk 0:03:01]}  Ngf6 {[%clk 0:02:57]} 6. Nxf6+ {[%clk 0:03:02]}  Nxf6 {[%clk 0:02:57]} 7. c3 {[%clk 0:03:03]}  Bg4 {[%clk 0:02:56]} 8. h3 {[%clk 0:02:54]}  Bh5 {[%clk 0:02:55]} 9. g4 {[%clk 0:02:50]}  Bg6 {[%clk 0:02:55]} 10. Ne5 {[%clk 0:02:50]}  Nd7 {[%clk 0:02:18]} 11. Nxg6 {[%clk 0:02:44]}  hxg6 {[%clk 0:02:17]} 12. Bg2 {[%clk 0:02:44]}  e6 {[%clk 0:02:16]} 13. Bf4 {[%clk 0:02:38]}  Nf6 {[%clk 0:02:10]} 14. Be5 {[%clk 0:02:37]}  Bd6 {[%clk 0:02:09]} 15. Qe2 {[%clk 0:02:35]}  Bxe5 {[%clk 0:02:06]} 16. Qxe5 {[%clk 0:02:30]}  Qb6 {[%clk 0:02:01]} 17. O-O-O {[%clk 0:02:29]}  O-O-O {[%clk 0:01:59]} 18. f4 {[%clk 0:02:28]}  Qc7 {[%clk 0:01:55]} 19. Qe3 {[%clk 0:02:25]}  Nd5 {[%clk 0:01:53]} 20. Bxd5 {[%clk 0:02:25]}  Rxd5 {[%clk 0:01:51]} 21. Rdf1 {[%clk 0:02:22]}  Kb8 {[%clk 0:01:46]} 22. h4 {[%clk 0:02:18]}  a6 {[%clk 0:01:43]} 23. Rh3 {[%clk 0:02:11]}  Ka8 {[%clk 0:01:43]} 24. Rfh1 {[%clk 0:02:11]}  Qa5 {[%clk 0:01:41]} 25. Kb1 {[%clk 0:02:10]}  Rdd8 {[%clk 0:01:40]} 26. h5 {[%clk 0:02:07]}  gxh5 {[%clk 0:01:38]} 27. Rxh5 {[%clk 0:02:08]}  Rxh5 {[%clk 0:01:37]} 28. Rxh5 {[%clk 0:02:09]}  Qc7 {[%clk 0:01:34]} 29. Qe5 {[%clk 0:02:09]}  Qxe5 {[%clk 0:01:21]} 30. fxe5 {[%clk 0:02:09]}  Kb8 {[%clk 0:01:16]} 31. Rh7 {[%clk 0:02:04]}  Rg8 {[%clk 0:01:13]} 32. Kc2 {[%clk 0:02:04]}  Kc7 {[%clk 0:01:13]} 33. Kd3 {[%clk 0:02:04]}  Kd7 {[%clk 0:01:13]} 34. Ke4 {[%clk 0:02:04]}  Ke7 {[%clk 0:01:13]} 35. g5 {[%clk 0:02:03]}  g6 {[%clk 0:01:05]} 36. Rh2 {[%clk 0:01:49]}  Rc8 {[%clk 0:01:04]} 37. c4 {[%clk 0:01:48]}  Rd8 {[%clk 0:01:05]} 38. Rd2 {[%clk 0:01:47]}  b5 {[%clk 0:01:02]} 39. cxb5 {[%clk 0:01:35]}  axb5 {[%clk 0:00:54]} 40. Rc2 {[%clk 0:01:32]}  Kd7 {[%clk 0:00:53]} 41. Rh2 {[%clk 0:01:23]}  Ra8 {[%clk 0:00:52]} 42. a3 {[%clk 0:01:22]}  Ra7 {[%clk 0:00:47]} 43. Rh7 {[%clk 0:01:20]}  Kc8 {[%clk 0:00:44]} 44. Rh8+ {[%clk 0:01:18]}  Kc7 {[%clk 0:00:43]} 45. Rf8 {[%clk 0:01:17]}  Kb6 {[%clk 0:00:43]} 46. Kd3 {[%clk 0:01:16]}  Rd7 {[%clk 0:00:34]} 47. Kc3 {[%clk 0:00:55]}  Ra7 {[%clk 0:00:33]} 48. Rd8 {[%clk 0:00:46]}  Rc7 {[%clk 0:00:27]} 49. Kb4 {[%clk 0:00:40]}  Ra7 {[%clk 0:00:27]} 50. b3 {[%clk 0:00:39]}  Rb7 {[%clk 0:00:23]} 51. Rd6 {[%clk 0:00:31]}  Ra7 {[%clk 0:00:13]} 52. a4 {[%clk 0:00:31]}  bxa4 {[%clk 0:00:14]} 53. bxa4 {[%clk 0:00:32]}  Kc7 {[%clk 0:00:13]} 54. a5 {[%clk 0:00:25]}  Ra8 {[%clk 0:00:13]} 55. Ka4 {[%clk 0:00:18]}  Ra7 {[%clk 0:00:03]} 56. Kb4 {[%clk 0:00:16]}  Ra8 {[%clk 0:00:03]} 57. Ka4 {[%clk 0:00:17]}  Rb8 {[%clk 0:00:03]} 58. Ka3 {[%clk 0:00:08]}  Rb5 {[%clk 0:00:03]} 59. Ka4 {[%clk 0:00:09]}  Rb1 {[%clk 0:00:03]} 60. Ka3 {[%clk 0:00:09]}  Rg1 {[%clk 0:00:02]} 61. Kb4 {[%clk 0:00:09]}  Rb1+ {[%clk 0:00:01]} 62. Ka4 {[%clk 0:00:09]}  Rb5 {[%clk 0:00:01]} 63. a6 {[%clk 0:00:04]}  Rb2 {[%clk 0:00:01]} 64. d5 {[%clk 0:00:02]}  exd5 {[%clk 0:00:01]} 65. Rf6 {[%clk 0:00:01]}  Ra2+ {[%clk 0:00:02]} 66. Kb4 {[%clk 0:00:02]}  Rxa6 {[%clk 0:00:01]} 67. Rxf7+ {[%clk 0:00:03]}  Kb6 {[%clk 0:00:02]} 68. Rf6 {[%clk 0:00:02]}  Ra2 {[%clk 0:00:01]} 69. e6 {[%clk 0:00:01]}  c5+ {[%clk 0:00:01]} 70. Kc3 {[%clk 0:00:01]}  Re2 {[%clk 0:00:01]} 71. Rxg6 {[%clk 0:00:02]}  Kb5 {[%clk 0:00:01]} 72. Kd3 {[%clk 0:00:03]}  Re5 {[%clk 0:00:01]} 73. Rf6 {[%clk 0:00:02]}  d4 {[%clk 0:00:01]} 74. g6 {[%clk 0:00:02]}  Re3+ {[%clk 0:00:01]} 75. Kd2 {[%clk 0:00:02]}  c4 {[%clk 0:00:01]} 76. g7 {[%clk 0:00:03]}  c3+ {[%clk 0:00:02]} 77. Kd1 {[%clk 0:00:02]}  Rg3 {[%clk 0:00:01]} 78. e7 {[%clk 0:00:02]}  Rg1+ {[%clk 0:00:01]} 79. Ke2 {[%clk 0:00:02]}  Kc4 {[%clk 0:00:02]} 80. e8=Q {[%clk 0:00:02]}  d3+ {[%clk 0:00:02]} 81. Kf2 {[%clk 0:00:03]}  Rxg7 {[%clk 0:00:01]} 82. Rc6+ {[%clk 0:00:04]}  Kb3 {[%clk 0:00:01]} 83. Qb8+ {[%clk 0:00:03]}  Kc2 {[%clk 0:00:02]} 84. Rxc3+ {[%clk 0:00:03]}  Kxc3 {[%clk 0:00:02]} 85. Qe5+ {[%clk 0:00:04]}  Kc2 {[%clk 0:00:02]} 86. Qxg7 {[%clk 0:00:04]}  d2 {[%clk 0:00:03]} 87. Qc7+ {[%clk 0:00:04]}  Kd1 {[%clk 0:00:03]} 88. Qd6 {[%clk 0:00:04]}  Kc1 {[%clk 0:00:04]} 89. Qc5+ {[%clk 0:00:04]}  Kd1 {[%clk 0:00:04]} 90. Qd5 {[%clk 0:00:04]}  Kc2 {[%clk 0:00:05]} 91. Qc4+ {[%clk 0:00:05]}  Kb2 {[%clk 0:00:05]} 92. Ke2 {[%clk 0:00:05]}  d1=Q+ {[%clk 0:00:05]} 93. Kxd1 {[%clk 0:00:05]}  Ka3 {[%clk 0:00:06]} 94. Qb5 {[%clk 0:00:05]} 1-0

[Event "January 9 Early 2024"]
[Site "https://www.chess.com"]
[Date "2024.01.11"]
[Round "4"]
[White "Grutter, Tim"]
[Black "Starozhilov, Leonid"]
[Result "0-1"]
[Board "310"]
[TimeControl "180+1"]
[WhiteFideId "1057472"]
[BlackFideId "14106752"]
[WhiteElo "2554"]
[BlackElo "2773"]
[WhiteTeam "NED"]
[BlackTeam "UKR"]
[WhiteClock "0:00:05"]
[BlackClock "0:00:04"]

1. Nf3 {[%clk 0:03:00]}  Nf6 {[%clk 0:02:57]} 2. g3 {[%clk 0:03:01]}  g6 {[%clk 0:02:58]} 3. Bg2 {[%clk 0:03:01]}  Bg7 {[%clk 0:02:59]} 4. O-O {[%clk 0:03:02]}  O-O {[%clk 0:02:59]} 5. b3 {[%clk 0:03:02]}  d6 {[%clk 0:03:00]} 6. Bb2 {[%clk 0:03:02]}  e5 {[%clk 0:03:01]} 7. d3 {[%clk 0:03:03]}  a5 {[%clk 0:02:56]} 8. a4 {[%clk 0:02:58]}  Nc6 {[%clk 0:02:56]} 9. Nbd2 {[%clk 0:02:59]}  h6 {[%clk 0:02:53]} 10. e4 {[%clk 0:02:51]}  Be6 {[%clk 0:02:52]} 11. Nc4 {[%clk 0:02:47]}  Qd7 {[%clk 0:02:51]} 12. Re1 {[%clk 0:02:46]}  Nh7 {[%clk 0:02:46]} 13. d4 {[%clk 0:02:45]}  Bxc4 {[%clk 0:02:44]} 14. bxc4 {[%clk 0:02:45]}  exd4 {[%clk 0:02:44]} 15. Nxd4 {[%clk 0:02:45]}  Ng5 {[%clk 0:02:37]} 16. h4 {[%clk 0:02:30]}  Ne6 {[%clk 0:02:29]} 17. Nxe6 {[%clk 0:02:27]}  Qxe6 {[%clk 0:02:19]} 18. Bxg7 {[%clk 0:02:27]}  Kxg7 {[%clk 0:02:20]} 19. Qd5 {[%clk 0:02:19]}  Qxd5 {[%clk 0:01:48]} 20. cxd5 {[%clk 0:02:17]}  Nb4 {[%clk 0:01:48]} 21. Rec1 {[%clk 0:02:14]}  Rfe8 {[%clk 0:01:46]} 22. Rab1 {[%clk 0:02:09]}  Rab8 {[%clk 0:01:35]} 23. f3 {[%clk 0:02:07]}  Na6 {[%clk 0:01:34]} 24. Bf1 {[%clk 0:02:04]}  Nc5 {[%clk 0:01:34]} 25. Bb5 {[%clk 0:02:04]}  Re7 {[%clk 0:01:34]} 26. Re1 {[%clk 0:01:58]}  Rf8 {[%clk 0:01:20]} 27. Kf2 {[%clk 0:01:57]}  h5 {[%clk 0:01:14]} 28. Bd3 {[%clk 0:01:48]}  b6 {[%clk 0:01:13]} 29. Bb5 {[%clk 0:01:48]}  Re5 {[%clk 0:01:11]} 30. Bc6 {[%clk 0:01:38]}  f6 {[%clk 0:01:09]} 31. Re3 {[%clk 0:01:35]}  Rf7 {[%clk 0:01:08]} 32. Rbe1 {[%clk 0:01:34]}  Rfe7 {[%clk 0:01:08]} 33. c4 {[%clk 0:01:30]}  f5 {[%clk 0:01:01]} 34. R1e2 {[%clk 0:01:05]}  fxe4 {[%clk 0:00:58]} 35. f4 {[%clk 0:01:05]}  Rf5 {[%clk 0:00:58]} 36. Bb5 {[%clk 0:01:01]}  Rf8 {[%clk 0:00:53]} 37. Kg2 {[%clk 0:00:59]}  Kf6 {[%clk 0:00:46]} 38. Re1 {[%clk 0:00:52]}  Rg7 {[%clk 0:00:35]} 39. Kh3 {[%clk 0:00:47]}  Ke7 {[%clk 0:00:35]} 40. R1e2 {[%clk 0:00:44]}  Kd8 {[%clk 0:00:35]} 41. Re1 {[%clk 0:00:44]}  Re7 {[%clk 0:00:35]} 42. R1e2 {[%clk 0:00:44]}  Nd3 {[%clk 0:00:33]} 43. Kg2 {[%clk 0:00:38]}  Nc5 {[%clk 0:00:31]} 44. Re1 {[%clk 0:00:37]}  Rfe8 {[%clk 0:00:25]} 45. R1e2 {[%clk 0:00:34]}  Rg8 {[%clk 0:00:24]} 46. Re1 {[%clk 0:00:34]}  Kc8 {[%clk 0:00:24]} 47. R1e2 {[%clk 0:00:33]}  Kb7 {[%clk 0:00:25]} 48. Re1 {[%clk 0:00:34]}  Rge8 {[%clk 0:00:20]} 49. R1e2 {[%clk 0:00:33]}  Rf8 {[%clk 0:00:21]} 50. Re1 {[%clk 0:00:33]}  Ref7 {[%clk 0:00:21]} 51. R1e2 {[%clk 0:00:32]}  Rf6 {[%clk 0:00:21]} 52. Re1 {[%clk 0:00:32]}  Rf5 {[%clk 0:00:20]} 53. R1e2 {[%clk 0:00:32]}  Kc8 {[%clk 0:00:19]} 54. Re1 {[%clk 0:00:31]}  Kd8 {[%clk 0:00:19]} 55. R1e2 {[%clk 0:00:30]}  R5f7 {[%clk 0:00:19]} 56. Kh3 {[%clk 0:00:28]}  Ke7 {[%clk 0:00:19]} 57. Re1 {[%clk 0:00:27]}  Kf6 {[%clk 0:00:19]} 58. R1e2 {[%clk 0:00:27]}  Kg7 {[%clk 0:00:19]} 59. Re1 {[%clk 0:00:23]}  Re7 {[%clk 0:00:20]} 60. R1e2 {[%clk 0:00:22]}  Kf6 {[%clk 0:00:17]} 61. Re1 {[%clk 0:00:19]}  Rff7 {[%clk 0:00:16]} 62. R1e2 {[%clk 0:00:19]}  Nb7 {[%clk 0:00:16]} 63. Re1 {[%clk 0:00:12]}  Rf8 {[%clk 0:00:16]} 64. R1e2 {[%clk 0:00:12]}  Rff7 {[%clk 0:00:13]} 65. Re1 {[%clk 0:00:12]}  Nd8 {[%clk 0:00:14]} 66. R1e2 {[%clk 0:00:10]}  Kf5 {[%clk 0:00:14]} 67. Re1 {[%clk 0:00:09]}  Rf8 {[%clk 0:00:14]} 68. R1e2 {[%clk 0:00:09]}  Nf7 {[%clk 0:00:14]} 69. Re1 {[%clk 0:00:06]}  Nh6 {[%clk 0:00:14]} 70. Rxe4 {[%clk 0:00:03]}  Rxe4 {[%clk 0:00:11]} 71. Bd7+ {[%clk 0:00:03]}  Kf6 {[%clk 0:00:11]} 72. Rxe4 {[%clk 0:00:03]}  Rf7 {[%clk 0:00:10]} 73. Re6+ {[%clk 0:00:02]}  Kg7 {[%clk 0:00:10]} 74. Be8 {[%clk 0:00:02]}  Rf6 {[%clk 0:00:10]} 75. Re7+ {[%clk 0:00:03]}  Kf8 {[%clk 0:00:11]} 76. Re1 {[%clk 0:00:02]}  Nf5 {[%clk 0:00:11]} 77. Bd7 {[%clk 0:00:02]}  Ne7 {[%clk 0:00:09]} 78. Bb5 {[%clk 0:00:01]}  Rf7 {[%clk 0:00:08]} 79. Re2 {[%clk 0:00:02]}  Kg7 {[%clk 0:00:08]} 80. Bd7 {[%clk 0:00:02]}  Kf6 {[%clk 0:00:06]} 81. Re6+ {[%clk 0:00:01]}  Kg7 {[%clk 0:00:06]} 82. Re2 {[%clk 0:00:02]}  Kf8 {[%clk 0:00:06]} 83. Be6 {[%clk 0:00:02]}  Rf6 {[%clk 0:00:06]} 84. Bd7 {[%clk 0:00:02]}  Kf7 {[%clk 0:00:04]} 85. Re3 {[%clk 0:00:03]}  Kf8 {[%clk 0:00:03]} 86. Re2 {[%clk 0:00:03]}  Ng8 {[%clk 0:00:03]} 87. Kg2 {[%clk 0:00:03]}  Nh6 {[%clk 0:00:03]} 88. Kf3 {[%clk 0:00:03]}  Rf7 {[%clk 0:00:03]} 89. Bc6 {[%clk 0:00:02]}  Re7 {[%clk 0:00:03]} 90. Rxe7 {[%clk 0:00:02]}  Kxe7 {[%clk 0:00:04]} 91. Bb7 {[%clk 0:00:01]}  Nf5 {[%clk 0:00:04]} 92. Bc8 {[%clk 0:00:02]}  Nd4+ {[%clk 0:00:04]} 93. Ke4 {[%clk 0:00:02]}  Nb3 {[%clk 0:00:04]} 94. f5 {[%clk 0:00:02]}  Nc5+ {[%clk 0:00:05]} 95. Kf4 {[%clk 0:00:02]}  Kf6 {[%clk 0:00:05]} 96. fxg6 {[%clk 0:00:02]}  Kxg6 {[%clk 0:00:06]} 97. Bf5+ {[%clk 0:00:02]}  Kf6 {[%clk 0:00:07]} 98. Bc2 {[%clk 0:00:01]}  Nd7 {[%clk 0:00:06]} 99. Bd1 {[%clk 0:00:01]}  Kg6 {[%clk 0:00:07]} 100. Bc2+ {[%clk 0:00:01]}  Kf6 {[%clk 0:00:06]} 101. Bd1 {[%clk 0:00:01]}  Kg6 {[%clk 0:00:05]} 102. Bc2+ {[%clk 0:00:02]}  Kg7 {[%clk 0:00:04]} 103. Kf5 {[%clk 0:00:01]}  Ne5 {[%clk 0:00:04]} 104. Bb3 {[%clk 0:00:01]}  Nd3 {[%clk 0:00:03]} 105. Kg5 {[%clk 0:00:01]}  Nf2 {[%clk 0:00:02]} 106. Kxh5 {[%clk 0:00:01]}  Ne4 {[%clk 0:00:02]} 107. Kg4 {[%clk 0:00:01]}  Nd2 {[%clk 0:00:02]} 108. Ba2 {[%clk 0:00:02]}  Ne4 {[%clk 0:00:02]} 109. Kf4 {[%clk 0:00:02]}  Nc5 {[%clk 0:00:03]} 110. Bb1 {[%clk 0:00:01]}  Nxa4 {[%clk 0:00:02]} 111. Kg5 {[%clk 0:00:02]}  Nc3 {[%clk 0:00:03]} 112. h5 {[%clk 0:00:02]}  Nxb1 {[%clk 0:00:03]} 113. h6+ {[%clk 0:00:03]}  Kh7 {[%clk 0:00:04]} 114. Kh5 {[%clk 0:00:04]}  Nd2 {[%clk 0:00:04]} 115. g4 {[%clk 0:00:04]}  Nf3 {[%clk 0:00:04]} 116. g5 {[%clk 0:00:05]}  Ne5 {[%clk 0:00:04]} 0-1